bitfinex-derivatives/quotes_SOLF0:USTF0_20250307
["timestamp","ask_amount","ask_price","bid_price","bid_amount"]
[1741351235004,116.3550605,142.55,142.49,18.6699627]
[1741351235310,116.3550605,142.55,142.49,47.3899627]
[1741351235811,116.3550605,142.55,142.51,7.0164]
[1741351236109,0.05297831,142.52,142.51,7.0164]
[1741351236299,0.05297831,142.52,142.51,25.6863627]
[1741351236505,7.831e-05,142.52,142.51,25.6863627]
[1741351237808,7.831e-05,142.52,142.51,18.6699627]
[1741351238001,7.831e-05,142.52,142.51,87.6868627]
[1741351239406,7.831e-05,142.52,142.51,80.6699627]
[1741351241211,7.831e-05,142.52,142.51,87.6868627]
[1741351245114,7.831e-05,142.52,142.51,106.3568254]
[1741351245714,7.831e-05,142.52,142.51,109.8568254]
[1741351245909,7.831e-05,142.52,142.51,106.3568254]
[1741351246114,7.831e-05,142.52,142.51,87.6868627]
[1741351247420,7.831e-05,142.52,142.51,25.6868627]
[1741351247819,7.831e-05,142.52,142.51,18.6699627]
[1741351248522,7.831e-05,142.52,142.51,25.6868627]
[1741351249732,7.831e-05,142.52,142.51,54.0668627]
[1741351250225,7.831e-05,142.52,142.51,116.0668627]
[1741351250631,7.831e-05,142.52,142.51,109.0299627]
[1741351250831,7.831e-05,142.52,142.51,47.0299627]
[1741351251035,7.831e-05,142.52,142.51,28.36]
[1741351251333,7.831e-05,142.52,142.5,0.0490143]
[1741351252136,7.0169,142.51,142.5,0.0490143]
[1741351252525,7.831e-05,142.52,142.42,231.52]
[1741351252734,4.056,142.55,142.47,18.6699627]
[1741351252937,4.056,142.55,142.49,18.6699627]
[1741351253437,4.056,142.55,142.51,7.0166]
[1741351253638,0.04451783,142.53,142.51,0.04424893]
[1741351254123,0.04451783,142.53,142.51,7.06104893]
[1741351255136,0.04451783,142.53,142.51,25.73101163]
[1741351255335,0.04451783,142.53,142.52,7.0164]
[1741351257431,2.0568,142.55,142.52,7.0164]
[1741351258740,2.1082461,142.55,142.52,7.0164]
[1741351259639,2.1082461,142.55,142.51,28.34424893]
[1741351259841,7.0159,142.53,142.51,28.34424893]
[1741351260234,2.1082461,142.55,142.51,28.34424893]
[1741351260435,7.0164,142.52,142.51,28.34424893]
[1741351260642,7.0164,142.52,142.51,0.04424893]
[1741351261632,7.0162,142.53,142.51,0.04424893]
[1741351261833,2.1082461,142.55,142.51,18.71421163]
[1741351262636,2.1082461,142.55,142.52,7.0164]
[1741351262936,2.1082461,142.55,142.52,35.1764]
[1741351263944,2.1082461,142.55,142.52,28.16]
[1741351264141,7.0157,142.54,142.52,28.16]
[1741351264536,2.1082461,142.55,142.52,28.16]
[1741351264838,7.0159,142.53,142.51,18.71421163]
[1741351266338,7.0164,142.52,142.51,0.04424893]
[1741351266731,2.1082461,142.55,142.47,18.6699627]
[1741351266935,2.0568,142.55,142.47,46.6899627]
[1741351267133,20.7267627,142.55,142.47,28.02]
[1741351267442,7.0177,142.5,142.47,35.0388]
[1741351267744,7.0177,142.5,142.47,28.02]
[1741351267938,7.0659642,142.5,142.47,28.07057534]
[1741351268137,7.0179,142.49,142.47,28.07057534]
[1741351268437,0.0482642,142.5,142.47,28.07057534]
[1741351268438,0.0482642,142.5,142.47,0.05057534]
[1741351268639,7.0183,142.48,142.47,0.05057534]
[1741351269244,4.1091,142.49,142.43,28.0]
[1741351269444,4.1091,142.49,142.41,18.6699627]
[1741351269638,4.1091,142.49,142.41,46.6899627]
[1741351269836,7.0212,142.43,142.4,7.0221]
[1741351270040,28.02,142.48,142.39,46.6899627]
[1741351270236,7.0191,142.47,142.41,18.6699627]
[1741351270443,2.0681,142.49,142.45,18.6699627]
[1741351270645,1.8958,142.53,142.47,18.6699627]
[1741351270945,0.04603511,142.48,142.47,18.6699627]
[1741351271140,0.05054225,142.51,142.47,18.6699627]
[1741351271341,7.06774225,142.51,142.47,18.6699627]
[1741351271848,7.06774225,142.51,142.47,25.6885627]
[1741351272040,0.05054225,142.51,142.47,18.6699627]
[1741351272545,0.05054225,142.51,142.47,25.6886627]
[1741351273347,7.0174,142.5,142.47,18.6699627]
[1741351273748,0.05054225,142.51,142.47,18.6699627]
[1741351273949,0.05054225,142.51,142.46,28.06699828]
[1741351274343,30.08104225,142.51,142.43,18.6699627]
[1741351274544,7.0202,142.45,142.43,18.6699627]
[1741351274744,30.0305,142.51,142.42,27.98]
[1741351275149,7.0204,142.44,142.42,27.98]
[1741351275454,30.0305,142.51,142.41,18.6699627]
[1741351275753,0.04700892,142.44,142.42,0.05146188]
[1741351275954,30.0305,142.51,142.42,0.05146188]
[1741351276145,0.05147013,142.44,142.41,18.6699627]
[1741351276345,30.0305,142.51,142.45,0.04692473]
[1741351276548,30.0305,142.51,142.47,0.05389856]
[1741351276755,7.0197,142.46,142.42,7.021]
[1741351276954,30.0305,142.51,142.42,7.021]
[1741351277145,30.0305,142.51,142.41,18.6699627]
[1741351277446,30.0305,142.51,142.41,25.6914627]
[1741351277654,47.22724458,142.5,142.41,18.6699627]
[1741351277855,0.05400744,142.47,142.45,0.04465243]
[1741351278051,7.0193,142.46,142.45,0.04465243]
[1741351278253,8.8979,142.46,142.45,0.04465243]
[1741351278454,1.8786,142.46,142.45,18.71461513]
[1741351278653,1.8786,142.46,142.45,25.73441513]
[1741351279252,0.05400744,142.47,142.46,7.0193]
[1741351280261,0.05400744,142.47,142.45,25.73421513]
[1741351280856,0.05400744,142.47,142.45,18.71461513]
[1741351282254,7.0193,142.46,142.45,18.71461513]
[1741351285255,7.0193,142.46,142.43,46.3899627]
[1741351285457,7.0203,142.44,142.43,27.72]
[1741351285661,1.9801,142.46,142.41,18.6699627]
[1741351285853,7.0213,142.42,142.41,18.6699627]
[1741351286556,7.07425363,142.43,142.41,18.6699627]
[1741351286748,0.05325363,142.43,142.41,18.6699627]
[1741351287255,0.05325363,142.43,142.42,7.0213]
[1741351287460,0.05325363,142.43,142.41,18.6699627]
[1741351289055,0.05325363,142.43,142.41,46.3299627]
[1741351289449,7.07425363,142.43,142.41,46.3299627]
[1741351290152,7.0213,142.42,142.41,46.3299627]
[1741351291464,7.07425363,142.43,142.41,46.3299627]
[1741351292366,0.05325363,142.43,142.41,53.3515627]
[1741351293056,0.05325363,142.43,142.42,7.0213]
[1741351293364,0.05325363,142.43,142.41,46.3299627]
[1741351297270,7.0191,142.47,142.41,46.3299627]
[1741351297458,1.9268,142.49,142.45,18.6699627]
[1741351298459,7.0193,142.46,142.45,18.6699627]
[1741351299766,7.0198,142.45,142.44,0.0509807]
[1741351303671,7.0218,142.41,142.4,18.6699627]
[1741351303873,1.8967,142.44,142.4,18.6699627]
[1741351304068,7.0212,142.43,142.4,18.6699627]
[1741351304371,1.8967,142.44,142.4,18.6699627]
[1741351304559,1.8967,142.44,142.41,0.04764616]
[1741351304871,0.05280355,142.43,142.41,0.04764616]
[1741351305266,0.05280355,142.43,142.42,7.0213]
[1741351306065,0.05280355,142.43,142.41,7.06924616]
[1741351306971,0.05280355,142.43,142.41,0.04764616]
[1741351307474,7.0213,142.42,142.41,0.04764616]
[1741351312870,0.05280355,142.43,142.36,18.6699627]
[1741351313076,0.05280355,142.43,142.34,18.6699627]
[1741351313375,29.0567,142.44,142.34,45.8299627]
[1741351313575,7.0245,142.36,142.34,45.8299627]
[1741351313773,29.0567,142.44,142.34,45.8299627]
[1741351313976,0.04906794,142.36,142.34,18.71881694]
[1741351314768,0.04906794,142.36,142.35,7.0247]
[1741351315876,7.023,142.39,142.36,7.0239]
[1741351316174,7.023,142.39,142.36,25.6938627]
[1741351316369,7.0233,142.38,142.36,18.6699627]
[1741351316569,123.48259172,142.43,142.36,18.6699627]
[1741351316776,7.023,142.39,142.38,0.05042036]
[1741351320078,7.0247,142.35,142.34,18.6699627]
[1741351320272,1.9854,142.4,142.34,18.6699627]
[1741351320773,7.0231,142.39,142.36,7.024]
[1741351320980,29.0654,142.4,142.3,18.6699627]
[1741351321181,18.72129275,142.39,142.36,0.04990056]
[1741351321371,1.99193005,142.39,142.3,18.6699627]
[1741351321570,1.9406,142.39,142.3,18.6699627]
[1741351321881,1.9406,142.39,142.32,7.026]
[1741351322377,7.0252,142.35,142.32,7.026]
[1741351322579,7.0252,142.35,142.34,0.04899421]
[1741351322882,7.0255,142.34,142.31,7.0265]
[1741351323073,0.04465835,142.36,142.33,0.05350999]
[1741351323580,7.0252,142.34,142.33,0.05350999]
[1741351324180,0.04465835,142.36,142.33,0.05350999]
[1741351324883,7.0249,142.35,142.33,0.05350999]
[1741351325078,0.04465835,142.36,142.33,0.05350999]
[1741351325480,7.0252,142.34,142.33,0.05350999]
[1741351325881,27.18465835,142.36,142.28,52.8379627]
[1741351326083,27.18465835,142.36,142.27,1.8991]
[1741351326084,27.14,142.36,142.26,18.6699627]
[1741351326278,18.6699627,142.35,142.26,18.6699627]
[1741351326683,1.9525,142.34,142.26,18.6699627]
[1741351326885,1.9525,142.34,142.24,45.8099627]
[1741351327090,7.0289,142.27,142.24,52.8398627]
[1741351327384,27.14,142.32,142.24,18.6699627]
[1741351327688,0.04696676,142.27,142.23,27.14]
[1741351328087,0.04696676,142.27,142.24,0.05126102]
[1741351328393,7.0297,142.25,142.24,0.05126102]
[1741351329389,0.04696676,142.27,142.24,0.05126102]
[1741351329583,0.04696676,142.27,142.25,18.6699627]
[1741351329985,0.04696676,142.27,142.26,7.0292]
[1741351331398,1.9081,142.32,142.25,18.6699627]
[1741351331592,1.9081,142.32,142.29,18.6699627]
[1741351332189,1.9081,142.32,142.29,25.6972627]
[1741351332384,1.953089,142.32,142.29,25.74874563]
[1741351332793,8.979489,142.32,142.29,25.74874563]
[1741351332984,1.953089,142.32,142.29,0.05148293]
[1741351333396,7.0272,142.3,142.29,0.05148293]
[1741351333594,1.953089,142.32,142.29,0.05148293]
[1741351333996,7.0271,142.31,142.29,0.05148293]
[1741351335599,1.953089,142.32,142.29,0.05148293]
[1741351337203,7.0272,142.3,142.29,0.05148293]
[1741351337801,7.027,142.31,142.29,0.05148293]
[1741351338103,7.027,142.31,142.29,7.07908293]
[1741351338298,8.979589,142.32,142.29,18.72144563]
[1741351338904,7.0268,142.31,142.29,25.74894563]
[1741351339205,7.0268,142.31,142.29,18.72144563]
[1741351339406,7.0271,142.31,142.29,18.72144563]
[1741351339607,1.953089,142.32,142.29,0.05148293]
[1741351340500,7.0268,142.31,142.29,0.05148293]
[1741351340908,1.953089,142.32,142.29,0.05148293]
[1741351341604,7.0272,142.3,142.29,0.05148293]
[1741351341798,1.953089,142.32,142.29,0.05148293]
[1741351342807,8.979689,142.32,142.29,0.05148293]
[1741351343217,8.979689,142.32,142.29,7.07898293]
[1741351343508,7.0268,142.31,142.29,0.05148293]
[1741351344911,7.0272,142.3,142.29,0.05148293]
[1741351345212,1.953089,142.32,142.29,0.05148293]
[1741351345513,7.027,142.31,142.29,0.05148293]
[1741351346207,7.0272,142.3,142.29,0.05148293]
[1741351346408,1.953089,142.32,142.29,0.05148293]
[1741351347414,7.027,142.31,142.29,0.05148293]
[1741351347608,1.953089,142.32,142.29,0.05148293]
[1741351347804,0.044989,142.32,142.29,0.05148293]
[1741351349415,7.0268,142.31,142.29,0.05148293]
[1741351350615,0.044989,142.32,142.29,18.72144563]
[1741351351117,0.044989,142.32,142.31,18.6699627]
[1741351351316,0.044989,142.32,142.29,45.78144563]
[1741351351815,0.044989,142.32,142.3,7.0272]
[1741351352309,0.044989,142.32,142.31,25.6966627]
[1741351352509,0.044989,142.32,142.31,18.6699627]
[1741351354012,0.044989,142.32,142.29,27.11148293]
[1741351354413,7.0272,142.31,142.29,27.11148293]
[1741351354616,0.044989,142.32,142.29,0.05148293]
[1741351355018,7.0272,142.3,142.29,0.05148293]
[1741351356223,0.044989,142.32,142.29,0.05148293]
[1741351356517,7.0269,142.31,142.29,0.05148293]
[1741351356912,7.0272,142.3,142.29,0.05148293]
[1741351358522,7.071589,142.32,142.29,0.05148293]
[1741351358711,7.071589,142.32,142.29,7.07918293]
[1741351358916,7.071589,142.32,142.29,0.05148293]
[1741351359114,0.044989,142.32,142.29,0.05148293]
[1741351360019,7.0272,142.3,142.29,0.05148293]
[1741351361319,0.044989,142.32,142.24,18.6699627]
[1741351361621,20.6619627,142.34,142.22,29.2966]
[1741351361622,29.4148,142.31,142.22,29.2966]
[1741351361825,1.9953,142.3,142.22,47.9665627]
[1741351362124,7.0289,142.27,142.23,7.0304]
[1741351362725,0.04893938,142.26,142.24,18.72176061]
[1741351363725,0.04893938,142.26,142.24,0.05179791]
[1741351364225,7.07843938,142.26,142.24,0.05179791]
[1741351365023,7.0297,142.25,142.24,0.05179791]
[1741351365720,0.04893938,142.26,142.24,0.05179791]
[1741351366126,7.0297,142.25,142.24,0.05179791]
[1741351366630,7.07833938,142.26,142.24,0.05179791]
[1741351366825,0.04893938,142.26,142.24,0.05179791]
[1741351367215,7.0297,142.25,142.24,0.05179791]
[1741351367626,0.04893938,142.26,142.24,0.05179791]
[1741351367830,7.07833938,142.26,142.24,0.05179791]
[1741351368128,0.04893938,142.26,142.24,0.05179791]
[1741351368520,7.0297,142.25,142.24,0.05179791]
[1741351368719,0.04893938,142.26,142.24,0.05179791]
[1741351369118,7.07843938,142.26,142.24,0.05179791]
[1741351369322,0.04893938,142.26,142.24,7.08189791]
[1741351369527,0.04893938,142.26,142.24,25.75186061]
[1741351369827,0.04893938,142.26,142.25,7.0297]
[1741351370030,0.04893938,142.26,142.24,18.72176061]
[1741351370529,0.04893938,142.26,142.24,0.05179791]
[1741351370922,0.04893938,142.26,142.25,7.0297]
[1741351372129,0.04893938,142.26,142.24,7.08189791]
[1741351372429,0.04893938,142.26,142.24,0.05179791]
[1741351372728,0.04893938,142.26,142.16,18.6699627]
[1741351373128,46.1299627,142.27,142.16,18.6699627]
[1741351373323,46.1299627,142.27,142.18,18.6699627]
[1741351373528,27.46,142.27,142.2,18.6699627]
[1741351373923,0.05218908,142.25,142.17,18.6699627]
[1741351374123,0.05218908,142.25,142.15,27.48]
[1741351374330,7.0315,142.22,142.18,18.6699627]
[1741351374632,0.05144668,142.21,142.2,18.6699627]
[1741351374823,7.029,142.27,142.22,7.0312]
[1741351375026,223.5353,142.3,142.22,18.6699627]
[1741351375525,28.61408251,142.27,142.24,18.6699627]
[1741351375728,28.61408251,142.27,142.22,18.6699627]
[1741351375931,7.0295,142.26,142.24,0.05116454]
[1741351376129,28.6586444,142.27,142.24,0.05116454]
[1741351376933,7.0292,142.26,142.24,0.05116454]
[1741351377335,28.6586444,142.27,142.24,0.05116454]
[1741351377532,35.6877444,142.27,142.24,0.05116454]
[1741351377727,0.04456189,142.27,142.24,0.05116454]
[1741351378434,7.07336189,142.27,142.24,0.05116454]
[1741351379030,7.0297,142.26,142.24,0.05116454]
[1741351379330,0.04456189,142.27,142.24,0.05116454]
[1741351379631,7.0296,142.26,142.24,0.05116454]
[1741351380431,7.07346189,142.27,142.24,0.05116454]
[1741351381131,0.04456189,142.27,142.24,0.05116454]
[1741351381336,0.04456189,142.27,142.25,18.6699627]
[1741351381833,0.04456189,142.27,142.24,0.05116454]
[1741351383031,7.0307,142.23,142.19,25.7023627]
[1741351383237,27.44,142.27,142.19,18.6699627]
[1741351383429,27.44,142.27,142.21,18.6699627]
[1741351384436,0.04465744,142.25,142.21,25.7014627]
[1741351384623,0.04465744,142.25,142.21,18.6699627]
[1741351384828,7.0305,142.24,142.19,25.7021627]
[1741351385031,0.04465744,142.25,142.19,18.6699627]
[1741351385336,0.04465744,142.25,142.17,18.6699627]
[1741351385531,27.44,142.27,142.17,18.6699627]
[1741351385731,0.05159258,142.23,142.17,18.6699627]
[1741351386033,7.0315,142.22,142.18,7.033]
[1741351386735,0.05159258,142.23,142.17,18.6699627]
[1741351386931,27.45159258,142.23,142.15,18.6699627]
[1741351387137,27.45159258,142.23,142.14,46.0699627]
[1741351387138,2.0703,142.22,142.14,46.0699627]
[1741351387339,20.7402627,142.22,142.13,18.6699627]
[1741351387539,0.05295235,142.19,142.13,18.6699627]
[1741351387745,7.0344,142.16,142.13,18.6699627]
[1741351387945,27.42,142.19,142.09,232.04]
[1741351388236,7.0351,142.14,142.1,53.1266627]
[1741351388535,0.05167535,142.16,142.1,46.0899627]
[1741351388735,0.05167535,142.16,142.12,7.0358]
[1741351389033,0.05167535,142.16,142.1,46.0899627]
[1741351389236,0.05167535,142.16,142.09,18.6699627]
[1741351389431,0.05167535,142.16,142.09,46.1699627]
[1741351389836,0.05167535,142.16,142.07,18.6699627]
[1741351390033,27.52,142.15,142.05,18.6699627]
[1741351390230,7.0365,142.12,142.05,18.6699627]
[1741351390433,20.5491627,142.14,142.03,27.56]
[1741351390737,18.6699627,142.04,141.97,84.01104381]
[1741351390940,46.2299627,142.03,141.97,84.01104381]
[1741351391139,46.3099627,142.03,141.97,84.01104381]
[1741351391443,0.04470018,142.02,141.97,84.01104381]
[1741351391646,18.71466288,142.02,141.97,84.01104381]
[1741351391840,7.08620018,142.02,141.97,84.01104381]
[1741351392035,0.04470018,142.02,141.97,84.01104381]
[1741351392438,195.40835152,142.01,141.96,64.99148349]
[1741351392837,1.40835152,142.01,141.92,28.94]
[1741351393141,27.64,142.03,141.92,28.94]
[1741351393334,194.0,142.16,141.97,30.02388459]
[1741351393539,238.17533437,142.23,141.97,30.02388459]
[1741351393540,225.29815975,142.15,142.0,37.06598459]
[1741351393739,30.02388459,142.17,142.03,30.02388459]
[1741351393942,30.02388459,142.18,142.04,28.96]
[1741351394142,30.02388459,142.18,142.05,7.0391]
[1741351394340,30.02388459,142.18,142.05,11.0285]
[1741351394541,7.0356,142.14,142.06,7.0389]
[1741351394845,0.05356365,142.13,142.1,0.04836418]
[1741351395438,114.3241605,142.11,142.1,0.04836418]
[1741351397043,0.05356365,142.13,142.1,0.04836418]
[1741351397438,0.05356365,142.13,142.1,28.9]
[1741351398041,0.05356365,142.13,142.07,28.88]
[1741351398844,0.05356365,142.13,142.05,3.9894]
[1741351399246,28.91356365,142.13,142.05,3.9894]
[1741351400445,28.91356365,142.13,142.05,1.9156]
[1741351400849,7.0371,142.1,142.05,8.9552]
[1741351401248,0.04426174,142.09,142.05,8.9552]
[1741351401443,0.04426174,142.09,142.05,1.9156]
[1741351401846,7.08186174,142.09,142.05,1.9156]
[1741351402052,0.04426174,142.09,142.05,1.9156]
[1741351402549,0.04426174,142.09,142.06,7.0391]
[1741351402949,7.08196174,142.09,142.05,30.8756]
[1741351403152,0.04426174,142.09,142.05,28.43373598]
[1741351403458,7.08186174,142.09,142.05,28.43373598]
[1741351403655,0.04426174,142.09,142.05,28.43373598]
[1741351405655,0.04426174,142.09,142.05,35.47313598]
[1741351406350,0.04426174,142.09,142.06,7.0391]
[1741351406655,0.04426174,142.09,142.05,28.43373598]
[1741351407251,7.08216174,142.09,142.05,28.43373598]
[1741351407452,0.04426174,142.09,142.05,28.43373598]
[1741351407854,7.0382,142.08,142.05,28.43373598]
[1741351408160,0.04426174,142.09,142.03,28.88]
[1741351408351,0.04426174,142.09,142.03,30.9275]
[1741351408656,7.0392,142.06,142.03,30.9275]
[1741351409154,7.09058671,142.06,142.03,30.9275]
[1741351409456,7.09058671,142.06,142.03,2.0475]
[1741351409657,0.05138671,142.06,142.03,9.0877]
[1741351409951,0.05138671,142.06,142.03,2.0475]
[1741351410153,7.0401,142.04,142.03,2.0475]
[1741351410349,0.05138671,142.06,142.01,2.0106]
[1741351410754,7.0411,142.02,142.01,2.0106]
[1741351411357,7.0411,142.02,141.98,232.2]
[1741351411358,7.0421,142.0,141.98,232.2]
[1741351411549,0.04815775,142.03,141.98,232.2]
[1741351411750,0.04815775,142.03,141.97,1.9266]
[1741351412253,0.04815775,142.03,141.96,2.0367]
[1741351412449,7.0436,141.97,141.94,2.0642]
[1741351412848,29.0,142.0,141.94,9.1089]
[1741351413050,0.04512404,141.97,141.94,2.0642]
[1741351413261,0.04512404,141.97,141.93,1.9266]
[1741351413455,7.045,141.95,141.92,2.0367]
[1741351413656,0.04512404,141.97,141.92,2.0367]
[1741351414051,0.04512404,141.97,141.93,1.9876]
[1741351414746,21.05989545,141.99,141.94,1.9227]
[1741351414957,21.05989545,141.99,141.92,9.0827]
[1741351415356,21.05989545,141.99,141.92,2.0367]
[1741351415659,28.10259545,141.99,141.92,2.0367]
[1741351415860,21.05989545,141.99,141.92,32.0367]
[1741351416056,0.04445146,141.97,141.94,0.04512404]
[1741351416358,30.02388459,141.98,141.87,4.0924]
[1741351416554,28.34882718,141.97,141.87,2.0391]
[1741351416754,30.02388459,141.96,141.8,1.22647494]
[1741351416948,30.02388459,141.96,141.79,30.02388459]
[1741351416949,30.12,141.95,141.81,2.0391]
[1741351417353,30.02388459,141.91,141.81,2.0391]
[1741351417557,0.04475287,141.89,141.81,2.0391]
[1741351418362,7.09265287,141.89,141.81,2.0391]
[1741351418554,0.04475287,141.89,141.81,2.0391]
[1741351418754,0.04475287,141.89,141.82,30.02388459]
[1741351419058,0.04475287,141.89,141.81,2.0391]
[1741351419446,0.04475287,141.89,141.79,30.02388459]
[1741351419447,7.09235287,141.89,141.79,30.02388459]
[1741351419653,0.04475287,141.89,141.79,30.02388459]
[1741351419954,0.04854873,141.85,141.82,30.02388459]
[1741351420259,28.34882718,141.9,141.87,7.0481]
[1741351420445,28.34882718,141.9,141.83,232.46]
[1741351420647,28.34882718,141.9,141.84,3.8818]
[1741351420849,60.88882718,141.9,141.79,2.0477]
[1741351421055,7.05,141.84,141.79,2.0477]
[1741351421257,32.58882578,141.86,141.83,0.04657366]
[1741351421453,32.54,141.86,141.76,3.8818]
[1741351422063,7.0499,141.85,141.76,3.8818]
[1741351422358,32.54,141.86,141.76,3.8818]
[1741351422550,0.04930865,141.82,141.76,36.8218]
[1741351422755,0.04930865,141.82,141.76,3.8818]
[1741351423058,33.06930865,141.82,141.71,232.46]
[1741351423261,33.02,141.82,141.73,7.0551]
[1741351423565,0.05326548,141.78,141.71,262.48388459]
[1741351424267,33.19326548,141.78,141.7,3.9348]
[1741351424460,33.19326548,141.78,141.71,1.984]
[1741351424760,0.05326548,141.78,141.71,1.984]
[1741351425149,0.05326548,141.78,141.72,30.02388459]
[1741351425355,0.05326548,141.78,141.73,33.1]
[1741351425552,0.05326548,141.78,141.76,30.02388459]
[1741351425765,19.00082718,141.81,141.77,33.26]
[1741351425957,238.17533437,141.8,141.79,30.02388459]
[1741351426161,238.17533437,141.8,141.79,7.0525]
[1741351426858,231.94453437,141.8,141.79,7.0525]
[1741351427160,231.94453437,141.8,141.78,28.43325426]
[1741351427565,0.04826199,141.81,141.78,0.0500792]
[1741351427758,0.04826199,141.81,141.75,92.12880241]
[1741351427959,0.04826199,141.81,141.75,125.30880241]
[1741351428350,0.04826199,141.81,141.77,30.02388459]
[1741351428552,0.04826199,141.81,141.8,30.02388459]
[1741351428757,0.04826199,141.81,141.8,63.16388459]
[1741351428964,0.04826199,141.81,141.8,33.14]
[1741351429367,0.04826199,141.81,141.78,33.1]
[1741351429663,0.04826199,141.81,141.78,63.12388459]
[1741351430064,0.04826199,141.81,141.8,7.052]
[1741351430558,20.51663717,141.83,141.82,7.051]
[1741351430759,20.51663717,141.83,141.82,33.0]
[1741351431267,20.51663717,141.83,141.81,30.02388459]
[1741351431766,0.04659957,141.83,141.82,7.051]
[1741351432068,34.9862,141.92,141.81,30.07115306]
[1741351432069,34.9462,141.92,141.81,30.07115306]
[1741351432268,7.0478,141.89,141.81,30.02388459]
[1741351432469,34.9462,141.92,141.81,30.02388459]
[1741351433069,32.96,141.92,141.84,30.02388459]
[1741351433270,0.05378121,141.88,141.85,0.0451373]
[1741351433566,33.24,141.87,141.85,0.0451373]
[1741351433770,33.24,141.87,141.76,2.0618]
[1741351433971,7.0514,141.82,141.76,2.0618]
[1741351434374,1.963,141.86,141.76,2.0618]
[1741351434672,33.24,141.87,141.77,30.02388459]
[1741351434860,33.24,141.87,141.78,2.0678]
[1741351435061,0.05390807,141.83,141.81,0.05297685]
[1741351436470,0.05390807,141.83,141.82,7.051]
[1741351436773,34.0,141.9,141.82,30.02388459]
[1741351436980,34.02,141.93,141.82,32.07618459]
[1741351437167,34.02,141.93,141.82,2.0523]
[1741351437566,7.0462,141.92,141.87,7.0482]
[1741351437776,34.0,141.98,141.86,0.04780236]
[1741351438068,7.0441,141.96,141.91,7.0463]
[1741351438264,3.9729,141.99,141.89,34.0]
[1741351438664,1.9164,141.99,141.91,30.02388459]
[1741351438872,33.98,142.01,141.91,30.02388459]
[1741351439073,0.0473529,141.96,141.94,0.05092465]
[1741351439267,0.0473529,141.96,141.95,7.0442]
[1741351439863,0.0473529,141.96,141.95,7.0445]
[1741351440177,381.080535,142.02,141.94,30.07480924]
[1741351440374,381.080535,142.02,141.94,32.00960924]
[1741351440772,381.080535,142.02,141.94,1.98572465]
[1741351441278,381.080535,142.02,141.95,30.02388459]
[1741351441473,381.080535,142.02,141.94,36.40572465]
[1741351441474,35.97898459,142.11,141.98,30.02388459]
[1741351441682,7.038,142.09,142.02,7.0409]
[1741351441871,70.45898459,142.11,141.99,36.4172]
[1741351442072,70.45898459,142.11,141.96,64.50388459]
[1741351442878,0.05021072,142.05,142.02,0.04568915]
[1741351443668,0.05021072,142.05,142.02,30.06957374]
[1741351443977,34.42,142.14,142.02,30.06957374]
[1741351444276,2.0622,142.13,142.02,30.02388459]
[1741351444473,7.0375,142.1,142.03,7.0405]
[1741351444674,2.0622,142.13,142.02,30.02388459]
[1741351444872,2.0622,142.13,142.01,1.9083]
[1741351445075,0.05099699,142.09,142.06,0.0456611]
[1741351445463,7.0375,142.1,142.03,30.02388459]
[1741351445669,0.04640307,142.09,142.06,0.05073066]
[1741351445972,34.38,142.15,142.03,30.02388459]
[1741351446174,0.04500868,142.09,142.06,0.05139449]
[1741351447273,7.0386,142.07,142.06,0.05139449]
[1741351447673,7.08290868,142.09,142.06,0.05139449]
[1741351447868,0.04500868,142.09,142.06,0.05139449]
[1741351448273,7.08270868,142.09,142.06,0.05139449]
[1741351448687,0.04500868,142.09,142.06,0.05139449]
[1741351450389,0.04500868,142.09,142.07,7.0381]
[1741351451187,0.04500868,142.09,142.06,0.05139449]
[1741351451382,0.04500868,142.09,142.08,7.0381]
[1741351451587,31.24858985,142.24,142.08,63.98388459]
[1741351451786,34.0,142.2,142.08,63.98388459]
[1741351452184,30.02388459,142.13,142.02,3.8821]
[1741351452589,1.9355,142.12,142.02,3.8821]
[1741351452790,1.9355,142.12,142.06,0.05298492]
[1741351452791,0.04828156,142.09,142.06,0.05298492]
[1741351453388,0.04828156,142.09,142.06,7.09178492]
[1741351453589,0.04828156,142.09,142.06,0.05298492]
[1741351456187,0.04828156,142.09,142.07,7.0386]
[1741351456382,0.04828156,142.09,142.06,0.05298492]
[1741351458388,0.04828156,142.09,142.07,7.0386]
[1741351458592,0.04828156,142.09,142.06,34.43298492]
[1741351459091,0.04828156,142.09,142.06,0.05298492]
[1741351460896,0.04828156,142.09,142.08,7.0381]
[1741351461289,0.04828156,142.09,142.06,0.05298492]